bitfinex/quotes_ETHUSD_20260114
["timestamp","ask_amount","ask_price","bid_price","bid_amount"]
[1768404938257,2.03646116,3357.5,3355.6,0.375]
[1768404938959,2.03646116,3357.5,3355.5,2.98018179]
[1768404939186,2.03646116,3357.3,3355.6,3.355067]
[1768404939402,8.93548578,3357.4,3355.1,0.1555]
[1768404939403,2.03646116,3357.1,3355.5,2.9801646]
[1768404939587,2.03646116,3357.1,3355.4,0.375]
[1768404939796,2.03646116,3357.1,3355.5,0.375]
[1768404940224,2.03646116,3357.1,3355.4,2.98026762]
[1768404940413,2.03646116,3357.1,3355.2,0.375]
[1768404940612,0.31336559,3357.0,3355.2,0.375]
[1768404940905,0.31336559,3357.0,3355.6,2.98006106]
[1768404941108,2.03646116,3356.8,3355.5,0.375]
[1768404941299,2.03646116,3356.8,3355.2,0.375]
[1768404941502,2.03646116,3356.8,3355.1,0.1555]
[1768404942189,2.03646116,3356.8,3355.1,3.13602194]
[1768404942391,0.7994339,3356.7,3355.1,3.13602194]
[1768404942586,2.42146116,3356.6,3355.1,0.1555]
[1768404942787,2.42146116,3356.6,3354.4,0.375]
[1768404942977,2.42146116,3356.6,3354.9,2.98071047]
[1768404943179,3.30138341,3356.5,3355.0,0.375]
[1768404943395,0.32208951,3356.5,3354.5,5.9621404]
[1768404943710,2.35855067,3356.5,3354.5,5.9621404]
[1768404943919,2.35855067,3356.5,3354.6,0.375]
[1768404944078,2.03646116,3356.3,3354.7,0.83344755]
[1768404944284,2.03646116,3356.3,3354.8,0.375]
[1768404944739,2.03646116,3356.3,3354.7,0.83344755]
[1768404945013,2.03646116,3356.3,3354.1,0.375]
[1768404945014,2.03646116,3356.0,3353.4,2.59675705]
[1768404945234,2.03646116,3355.8,3353.5,0.375]
[1768404945398,2.03646116,3355.6,3353.4,5.96409614]
[1768404945578,2.03646116,3355.6,3353.5,0.02981959]
[1768404945784,2.03646116,3355.4,3353.5,0.36851277]
[1768404945988,2.42146116,3355.4,3353.5,0.36851277]
[1768404946193,2.42146116,3355.4,3353.5,0.33869318]
[1768404947004,2.42146116,3355.4,3353.6,0.375]
[1768404947202,5.9608965,3355.2,3353.7,2.98178131]
[1768404947488,5.9608965,3355.2,3353.6,0.375]
[1768404947489,2.03646116,3355.1,3353.6,2.98184811]
[1768404947704,2.03646116,3355.1,3353.5,0.71469318]
[1768404948015,2.03646116,3355.1,3353.5,0.33969318]
[1768404948211,2.03646116,3355.1,3353.5,0.001]
[1768404948908,2.03646116,3354.9,3353.5,0.001]
[1768404949109,0.09032472,3355.0,3353.5,0.001]
[1768404949110,2.03646116,3354.5,3353.5,0.001]
[1768404949791,5.96196266,3354.6,3353.5,0.001]
[1768404949998,0.63469627,3354.5,3353.5,0.001]
[1768404950323,2.67115743,3354.5,3353.5,0.001]
[1768404950887,0.63469627,3354.5,3353.5,0.001]
[1768404951101,2.98115907,3354.4,3353.5,0.001]
[1768404951306,1.90643167,3354.3,3353.5,0.001]
[1768404951711,2.29143167,3354.2,3352.0,2.01431095]
[1768404951902,2.29143167,3354.2,3352.8,2.98254378]
[1768404952102,2.29143167,3354.2,3352.0,2.01431095]
[1768404952303,2.29143167,3354.2,3352.4,0.375]
[1768404952518,2.29143167,3354.2,3352.8,2.98255668]
[1768404952707,2.29143167,3354.2,3352.4,0.375]
[1768404952904,1.90643167,3354.0,3352.0,2.01431095]
[1768404953105,1.90643167,3354.0,3351.6,0.001]
[1768404953310,1.99675639,3353.8,3351.7,0.375]
[1768404953714,1.90643167,3353.8,3351.7,0.375]
[1768404954020,1.99675639,3353.8,3351.6,0.376]
[1768404954191,1.90643167,3353.6,3351.6,0.376]
[1768404954396,1.90643167,3353.6,3351.6,0.001]
[1768404954594,0.71161013,3353.7,3351.6,0.001]
[1768404954595,1.90643167,3353.4,3351.6,0.001]
[1768404955310,1.90643167,3353.2,3351.6,0.001]
[1768404955511,2.29243167,3353.1,3351.6,0.001]
[1768404957133,1.90643167,3352.9,3351.6,0.001]
[1768404957427,1.90643167,3352.7,3351.6,0.001]
[1768404957609,1.90643167,3352.5,3351.6,0.001]
[1768404957808,1.90643167,3352.5,3351.3,0.001]
[1768404959006,1.90643167,3352.1,3351.0,0.001]
[1768404959204,1.90643167,3351.7,3351.0,0.001]
[1768404959433,0.386,3351.6,3351.0,0.001]
[1768404960817,2.29243167,3351.6,3350.1,2.98495198]
[1768404961015,2.29243167,3351.6,3350.1,3.28346897]
[1768404961016,2.13567484,3351.5,3350.1,3.28346897]
[1768404961264,1.90643167,3351.3,3350.1,0.2984952]
[1768404961410,1.90643167,3351.3,3349.5,2.98546708]
[1768404961609,1.90643167,3351.3,3349.3,0.375]
[1768404961810,1.90643167,3351.3,3350.1,2.98497513]
[1768404962016,5.11943624,3351.5,3350.2,0.02984896]
[1768404962344,2.98323594,3352.1,3350.1,5.96996065]
[1768404962345,0.386,3351.4,3350.3,0.59998096]
[1768404962542,7.87330823,3351.9,3350.3,0.59998096]
[1768404962543,0.386,3351.3,3350.4,0.02984718]
[1768404962746,2.14470731,3352.4,3350.3,2.61429191]
[1768404962920,3.36905622,3352.3,3350.4,2.01431095]
[1768404963117,1.90643167,3352.2,3350.5,0.26142919]
[1768404963344,1.90643167,3352.0,3350.3,0.59998096]
[1768404963548,1.90643167,3352.0,3349.9,2.01431095]
[1768404963729,1.90643167,3352.0,3350.4,2.98471036]
[1768404963933,1.90643167,3352.0,3350.3,2.98477233]
[1768404964150,1.90643167,3352.0,3349.9,2.01431095]
[1768404964656,1.90643167,3352.0,3350.3,2.98474493]
[1768404964842,8.94961365,3352.1,3350.4,0.59697141]
[1768404964843,1.90643167,3351.8,3350.4,0.59697141]
[1768404965146,0.386,3351.7,3350.4,3.58168528]
[1768404965349,2.9836496,3351.6,3350.4,3.58168528]
[1768404965528,5.9672992,3351.6,3350.4,0.59697141]
[1768404965861,0.386,3351.7,3350.5,0.35818675]
[1768404966153,5.27599492,3351.7,3350.5,0.35818675]
[1768404966348,1.90643167,3351.6,3350.5,0.35818675]
[1768404966556,1.90643167,3351.6,3350.2,2.98487005]
[1768404967048,1.90643167,3351.6,3349.9,3.36013636]
[1768404967435,1.90643167,3351.4,3349.9,3.36013636]
[1768404967821,1.90643167,3351.4,3349.9,6.34530009]
[1768404968040,2.73242256,3351.4,3350.0,0.63453001]
[1768404968243,1.90643167,3351.3,3349.6,2.98542046]
[1768404968451,1.90643167,3351.1,3349.6,2.98540785]
[1768404968632,8.95121586,3351.5,3349.4,2.38931095]
[1768404968633,0.38600001,3351.3,3350.0,2.01431095]
[1768404968835,0.38600001,3351.3,3349.9,8.95549119]
[1768404968836,0.38600001,3351.3,3350.1,3.49632364]
[1768404969053,0.38600001,3351.3,3350.1,1.48201269]
[1768404969348,0.38600001,3351.3,3350.2,5.96979284]
[1768404969878,1.90643167,3352.5,3350.3,2.01431095]
[1768404970152,1.90643167,3352.5,3350.2,11.93958568]
[1768404970153,2.29243167,3352.4,3350.5,2.01431095]
[1768404970352,1.90643167,3352.3,3350.5,2.01431095]
[1768404970936,0.57664317,3352.4,3350.7,2.01431095]
[1768404971124,0.19064317,3352.4,3350.8,2.04415456]
[1768404971321,7.16142194,3353.8,3350.8,2.04415456]
[1768404971322,1.90643167,3353.2,3351.2,2.01431095]
[1768404971526,0.386,3353.1,3351.4,2.01431095]
[1768404971969,1.90643167,3353.7,3351.6,2.01431095]
[1768404972249,1.90643167,3353.7,3351.7,2.10463567]
[1768404972250,0.386,3353.7,3351.7,2.10463567]
[1768404972474,0.386,3353.7,3351.3,0.46632472]
[1768404972475,1.90643167,3353.6,3351.8,0.36867135]
[1768404972638,1.90643167,3353.6,3351.6,0.376]
[1768404973020,1.90643167,3353.6,3351.4,2.01431095]
[1768404973252,1.90643167,3353.6,3351.5,0.376]
[1768404973456,1.90643167,3353.5,3351.6,8.9509488]
[1768404973657,1.90643167,3353.3,3351.7,1.43249831]
[1768404973954,1.90643167,3353.3,3351.6,5.9672992]
[1768404974163,1.90643167,3353.3,3351.6,8.9509488]
[1768404974328,1.90643167,3353.3,3351.6,5.9672992]
[1768404975171,1.90643167,3353.3,3351.6,8.9509488]
[1768404975375,2.98222593,3353.2,3351.6,5.9672992]
[1768404975692,2.98222593,3353.2,3351.0,2.98412496]
[1768404975693,1.90643167,3352.7,3351.3,2.98391356]
[1768404975961,1.90643167,3352.7,3351.5,2.9837343]
[1768404977434,1.90643167,3352.5,3351.0,2.98418382]
[1768404977635,2.29243167,3352.4,3351.0,2.98418382]
[1768404977838,2.44340471,3352.3,3351.0,3.6391838]
[1768404978041,1.90643167,3352.2,3350.9,2.98426577]
[1768404978260,1.90643167,3352.2,3350.9,5.96853865]
[1768404978459,1.90643167,3352.2,3350.8,2.98533768]
[1768404978760,1.90643167,3352.2,3350.8,2.98530265]
[1768404979058,1.90643167,3352.2,3350.8,0.001]
[1768404979269,1.90643167,3352.0,3350.8,0.001]
[1768404979459,4.88981422,3351.9,3350.8,0.001]
[1768404979631,0.386,3351.8,3350.8,0.001]
[1768404981344,0.09032472,3351.6,3350.1,2.98495735]
[1768404981543,0.47632472,3351.8,3349.7,0.376]
[1768404981544,4.97394938,3351.4,3349.7,0.376]
[1768404981762,0.91115812,3351.3,3349.7,0.376]
[1768404982288,2.90127985,3351.3,3349.6,0.376]
[1768404983468,0.27783736,3351.2,3349.6,0.376]
[1768404983648,2.90127985,3351.3,3349.7,8.95602591]
[1768404983849,0.27783694,3351.2,3349.7,8.95602591]
[1768404984044,5.8852444,3351.3,3349.8,0.93320259]
[1768404984045,0.61630813,3351.1,3349.8,0.93320259]
[1768404984246,0.386,3351.3,3349.8,0.93320259]
[1768404984452,0.27786346,3351.2,3349.8,0.93320259]
[1768404984647,3.36992062,3351.3,3349.8,0.93320259]
[1768404984865,0.386,3351.3,3349.8,0.93320259]
[1768404985067,0.386,3351.3,3349.9,1.21872804]
[1768404985440,0.386,3351.3,3350.0,1.92205191]
[1768404985639,1.99012173,3352.3,3350.1,10.87700847]
[1768404985640,0.386,3351.8,3350.1,10.87700847]
[1768404985859,0.386,3351.8,3350.2,2.32790087]
[1768404986058,0.386,3351.8,3350.2,2.29805191]
[1768404986254,0.386,3351.8,3350.3,1.4237994]
[1768404987069,0.386,3351.8,3350.3,3.34585131]
[1768404987366,0.386,3351.8,3350.3,1.4237994]
[1768404987668,0.386,3351.8,3350.4,10.87620663]
[1768404988946,0.386,3351.8,3350.5,1.92205191]
[1768404989146,3.07217469,3353.7,3350.7,1.92205191]
[1768404989147,2.98276664,3352.6,3350.7,1.92205191]
[1768404989346,0.66388709,3352.5,3350.8,0.376]
[1768404989550,0.27788709,3352.4,3350.8,0.376]
[1768404989759,0.002,3351.5,3350.9,5.96854576]
[1768404989972,0.386,3352.5,3351.0,1.12509093]
[1768404990269,0.002,3351.8,3351.0,3.04714284]
[1768404990474,0.386,3352.5,3351.1,1.92205191]
[1768404990860,3.36885318,3352.5,3351.0,1.12509093]
[1768404991067,6.35170636,3352.5,3351.1,1.04539096]
[1768404991276,6.35170636,3352.5,3346.9,0.09032472]
[1768404991277,2.26802455,3352.4,3350.3,1.92205191]
[1768404991572,1.99012173,3352.2,3350.8,5.96872085]
[1768404991779,0.386,3352.5,3350.9,1.92205191]
[1768404992003,0.27794431,3352.4,3351.0,0.49064108]
[1768404992289,2.26806604,3352.3,3351.0,0.49064108]
[1768404992500,1.99012173,3352.1,3349.6,1.92205191]
[1768404992792,1.99012173,3351.9,3350.5,2.98462911]
[1768404992959,0.66394431,3351.8,3350.5,5.96925826]
[1768404993161,0.27794431,3351.7,3350.6,0.59692583]
[1768404993351,2.26806604,3351.7,3350.6,0.59692583]
[1768404993682,0.09032472,3352.4,3350.6,2.51897774]
[1768404993683,2.37612173,3352.4,3350.6,2.51897774]
[1768404993865,0.27797595,3352.3,3350.7,9.32935303]
[1768404994051,2.26809768,3352.2,3350.8,1.18483308]
[1768404994379,2.26809768,3352.1,3350.8,1.18483308]
[1768404994580,1.99012173,3352.1,3350.8,1.21467669]
[1768404994792,6.35196158,3352.4,3350.9,0.71835787]
[1768404994793,3.36898079,3352.4,3350.9,0.71835787]
[1768404995077,0.27797756,3352.3,3350.9,0.71835787]
[1768404995378,0.27797756,3352.2,3350.9,0.71835787]
[1768404995575,3.36896107,3352.4,3350.9,0.71835787]
[1768404995800,1.99012173,3352.9,3351.1,13.85843099]
[1768404996005,1.99212173,3353.3,3351.2,1.92205191]
[1768404996303,0.6639153,3353.1,3351.2,1.92205191]
[1768404996504,0.386,3353.1,3351.2,1.92205191]
[1768404996714,2.37612173,3353.1,3351.3,1.81857706]
[1768404996879,1.99012173,3352.9,3351.3,1.81857706]
[1768404997074,1.99012173,3352.7,3351.1,5.96818954]
[1768404997391,1.99012173,3352.7,3350.0,10.3937888]
[1768404997392,2.08044645,3352.5,3350.4,0.376]
[1768404997596,1.99012173,3352.0,3350.1,0.377]
[1768404997901,1.99012173,3351.8,3350.1,0.001]
[1768404998076,1.99012173,3351.6,3350.1,0.63573275]
[1768404998696,1.99012173,3352.0,3350.1,0.63573275]
[1768404998882,0.66401978,3351.9,3350.2,1.92205191]
[1768404999082,0.66401978,3351.9,3350.3,0.25577847]
[1768404999083,0.386,3351.9,3350.3,0.25577847]
[1768404999288,0.386,3351.9,3350.4,0.376]
[1768404999908,3.36943782,3351.9,3350.5,5.9692583]
[1768405000106,1.99012173,3351.8,3350.5,5.9692583]
[1768405000403,0.386,3351.9,3350.5,3.60713283]
[1768405000610,0.386,3351.9,3350.5,9.57639113]
[1768405000903,0.386,3351.9,3350.6,0.0298454]
[1768405001086,0.386,3351.9,3350.5,9.57639113]
[1768405001418,5.35952857,3351.9,3350.5,9.57639113]
[1768405001603,1.99012173,3351.8,3350.6,1.02081696]
[1768405001809,2.37612173,3351.8,3350.6,1.02081696]
[1768405002013,2.37612173,3351.8,3350.7,5.96890202]
[1768405002677,2.37612173,3351.8,3350.7,5.96990202]
[1768405002879,2.37612173,3351.8,3350.7,0.001]
[1768405002880,1.99012173,3351.7,3350.7,0.001]
[1768405003074,3.36947286,3351.8,3350.7,0.001]
[1768405003075,1.99012173,3351.5,3350.7,0.001]
[1768405003519,1.99012173,3351.3,3350.7,0.001]
[1768405004341,4.97404965,3351.3,3350.7,0.001]
[1768405004829,0.61938689,3351.6,3350.7,0.001]
[1768405005030,2.98358728,3351.7,3350.7,0.001]
[1768405005231,0.27833565,3351.6,3350.7,0.001]
[1768405005416,1.99012173,3351.6,3350.7,0.001]
[1768405005598,0.27845815,3351.5,3350.7,0.001]
[1768405005804,3.09215841,3351.4,3350.7,0.001]
[1768405006132,2.98391668,3351.3,3350.7,0.001]
[1768405006496,5.79755188,3351.4,3350.7,0.001]
[1768405006925,0.82357853,3351.4,3350.7,0.001]
[1768405007225,2.98366395,3351.6,3350.7,0.001]
[1768405007438,0.27849099,3351.5,3350.7,0.001]
[1768405007596,0.386,3351.8,3350.7,0.001]
[1768405007804,0.27848877,3351.7,3350.7,0.001]
[1768405008003,0.27848877,3351.6,3350.7,0.001]
[1768405008328,0.27848877,3351.5,3350.7,0.001]
[1768405008634,0.66317012,3351.5,3350.7,0.001]
[1768405008934,2.98359369,3351.7,3350.7,0.001]
[1768405009235,2.98522697,3352.1,3350.7,1.92305191]
[1768405009527,0.27847453,3352.0,3350.7,1.92305191]
[1768405009711,0.90315796,3351.9,3350.8,0.19230519]
[1768405009913,0.27847453,3351.8,3350.8,0.19230519]
[1768405010120,0.002,3352.1,3350.9,5.96854576]
[1768405010718,0.002,3352.1,3350.9,2.98427288]
[1768405010955,0.27843969,3352.0,3350.9,2.98427288]
[1768405011149,1.93324289,3352.1,3350.9,5.96854576]
[1768405011359,1.93324289,3352.1,3350.8,2.98433346]
[1768405011360,2.20969809,3352.0,3350.8,2.98433346]
[1768405011666,0.27845722,3351.9,3350.8,2.98433346]
[1768405011837,0.27845722,3351.8,3350.8,2.98433346]
[1768405012041,1.93124289,3352.0,3350.8,2.98433346]
[1768405012243,0.83073643,3352.1,3350.7,0.001]
[1768405012244,1.93124289,3351.8,3350.7,0.001]
[1768405012559,1.93124289,3351.6,3350.7,0.001]
[1768405012765,1.93124289,3351.4,3350.1,0.001]
[1768405013068,2.30004324,3351.3,3350.1,0.001]
[1768405013264,1.93124289,3351.1,3350.1,0.001]
[1768405013566,1.93124289,3350.7,3348.7,1.99937434]
[1768405013778,2.20971852,3350.6,3349.5,2.98550884]
[1768405013932,0.27847563,3350.5,3349.4,2.98558234]
[1768405014132,0.27847563,3350.5,3348.8,2.98609436]
[1768405014133,2.98480733,3350.3,3348.8,5.97228858]
[1768405014368,0.64332127,3350.2,3348.8,4.11963856]
[1768405014531,2.20963586,3350.1,3348.5,0.001]
[1768405014726,0.3649283,3350.2,3348.7,2.9862268]
[1768405014727,2.20963586,3350.0,3348.7,2.9862268]
[1768405014962,0.27839297,3349.9,3348.7,2.9862268]
[1768405015160,0.386,3349.8,3348.7,2.9862268]
[1768405015366,0.25956359,3349.7,3348.7,2.9862268]
[1768405015570,2.19080648,3349.7,3348.5,0.001]
[1768405015739,1.93124289,3349.5,3348.5,0.001]
[1768405016263,7.90246161,3349.4,3348.5,0.001]
[1768405016563,0.2778519,3349.3,3347.7,2.98709963]
[1768405016883,0.2778519,3349.3,3347.7,6.47287251]
[1768405016884,1.35638309,3349.2,3347.7,6.47287251]
[1768405017164,0.6638519,3349.1,3347.7,6.47287251]
[1768405017465,0.386,3349.1,3347.7,6.47287251]
[1768405018041,2.20874963,3349.0,3347.0,4.98704976]
[1768405018342,1.93124289,3348.8,3347.3,2.98748244]
[1768405019077,1.93124289,3348.8,3347.2,2.98756976]
[1768405019233,1.93124289,3348.6,3347.2,5.97514146]
[1768405019563,1.93124289,3348.4,3347.2,5.97514146]
[1768405019968,1.93124289,3348.4,3347.2,2.98756976]
[1768405020266,0.23172429,3348.3,3347.2,3.28632674]
[1768405020768,0.23172429,3348.3,3346.6,2.00037434]
[1768405020769,1.93124289,3348.2,3347.1,2.98763831]
[1768405020958,1.93124289,3348.2,3346.6,0.001]
[1768405021358,1.93124289,3348.2,3347.0,2.9876903]
[1768405021664,2.98659789,3348.3,3347.2,2.98756549]
[1768405021863,0.386,3348.1,3346.9,2.98776949]
[1768405022047,0.386,3348.1,3346.6,0.001]
[1768405022048,0.386,3348.1,3347.0,2.98773745]
[1768405022243,2.98685782,3348.0,3346.6,5.97721466]
[1768405022456,5.30402035,3348.1,3346.6,5.97721466]
[1768405022658,3.37277746,3348.1,3346.7,1.09648323]
[1768405022864,0.386,3348.1,3346.7,1.09648323]
[1768405023049,3.37277675,3348.1,3346.7,1.09648323]
[1768405023438,0.386,3348.1,3346.7,1.09648323]
[1768405023637,3.37277176,3348.1,3346.7,1.09648323]
[1768405023868,3.37277176,3348.1,3346.8,0.70736979]
[1768405023869,0.63594514,3348.0,3346.8,0.70736979]
[1768405024073,0.63594514,3348.0,3346.1,2.9885473]
[1768405024074,1.93124289,3347.9,3346.1,2.9885473]
[1768405024371,1.93124289,3347.7,3346.1,2.98847607]
[1768405024666,0.386,3348.1,3346.2,2.29822907]
[1768405024667,0.99822604,3347.9,3346.2,2.29822907]
[1768405024868,2.31724289,3348.1,3346.2,2.29822907]
[1768405025070,0.386,3348.1,3346.4,1.99937434]
[1768405025365,0.387,3348.0,3346.5,2.37637434]
[1768405025564,0.387,3348.0,3346.7,1.99937434]
[1768405025740,0.387,3348.0,3346.8,0.23763743]
[1768405026377,0.387,3348.0,3346.9,5.97567898]
[1768405026578,6.36077274,3348.0,3346.8,3.22554479]
[1768405026762,1.93124289,3347.9,3346.7,2.98800676]
[1768405027283,1.93124289,3347.9,3346.2,0.29885473]
[1768405027487,1.93124289,3347.9,3346.5,2.98812]
[1768405027693,1.93124289,3347.9,3346.2,0.29885473]
[1768405027857,1.93124289,3347.9,3346.7,2.98801797]
[1768405028055,1.93124289,3347.7,3346.2,0.29885473]
[1768405028599,1.93124289,3347.5,3345.9,5.97746494]
[1768405028895,0.387,3347.4,3345.9,5.97746494]
[1768405029690,0.387,3347.4,3346.0,1.99937434]
[1768405029861,1.02314294,3347.4,3346.1,0.79768393]
[1768405030487,1.93124289,3347.2,3345.8,2.98880136]
[1768405030674,1.93124289,3347.2,3345.3,0.59344265]
[1768405030877,1.93124289,3347.2,3345.3,0.377]
[1768405031075,1.93124289,3347.2,3345.3,5.36559531]
[1768405031278,1.93124289,3347.2,3346.1,2.98853642]
[1768405031478,0.89293507,3347.1,3346.0,2.98860982]
[1768405031686,0.89293507,3347.1,3346.1,2.98850758]
[1768405032062,0.387,3347.1,3346.1,2.98847635]
[1768405032257,2.9872757,3347.6,3346.2,7.97630338]
[1768405032589,3.3745066,3347.3,3346.3,3.78596917]
[1768405032889,3.3745066,3347.3,3346.3,2.98833883]
[1768405033259,2.9875066,3347.3,3346.3,5.97671405]
[1768405033460,2.9875066,3347.3,3346.3,2.98833883]
[1768405033461,0.387,3347.2,3346.3,2.98833883]
[1768405033878,0.387,3347.2,3345.8,2.37637434]
[1768405034095,0.387,3347.2,3346.3,2.98835769]
[1768405034313,1.21631595,3347.2,3346.1,2.98710107]
[1768405034606,9.12287526,3347.2,3345.9,2.98873247]
[1768405034785,1.93124289,3347.1,3345.9,5.97746494]
[1768405035590,0.387,3347.2,3345.9,5.97746494]
[1768405035915,3.37457311,3347.2,3346.0,1.99937434]
[1768405036084,1.93124289,3347.1,3345.9,2.98873247]
[1768405036282,1.93124289,3346.9,3345.1,1.99937434]
[1768405036497,2.98792876,3346.8,3345.3,1.99937434]
[1768405036696,0.387,3346.7,3345.4,1.99937434]
[1768405037004,0.387,3346.7,3345.5,3.09611914]
[1768405037189,0.387,3346.7,3345.5,1.0967448]
[1768405037501,0.387,3346.7,3345.2,2.98935788]
[1768405037502,1.93124289,3346.6,3345.2,2.98935788]
[1768405038204,1.93124289,3346.6,3344.9,2.98955118]
[1768405038405,2.02156761,3346.6,3344.9,2.98955118]
[1768405038720,0.387,3346.7,3344.5,2.98998355]
[1768405038721,1.93124289,3346.2,3344.5,2.98998355]
[1768405038892,1.93124289,3346.0,3344.4,2.99004999]
[1768405039094,1.93124289,3346.0,3344.3,0.19993743]
[1768405039312,1.93124289,3345.8,3343.6,2.9907872]
[1768405039497,1.93124289,3345.5,3343.9,2.99046024]
[1768405039684,0.43017929,3345.8,3344.4,2.84107295]
[1768405039885,0.387,3345.7,3344.4,2.54307295]
[1768405040119,0.387,3345.7,3344.4,5.5331459]
[1768405040619,2.98900047,3345.6,3344.4,5.5331459]
[1768405041044,0.387,3345.7,3344.4,5.5331459]
[1768405041345,0.387,3345.7,3344.5,1.04229001]
[1768405041346,2.29841059,3345.7,3344.5,1.04229001]
[1768405041508,5.28732638,3345.7,3344.5,1.04229001]
[1768405042038,3.37591579,3345.7,3344.5,1.04229001]
[1768405042239,0.387,3345.7,3344.5,1.04229001]
[1768405042447,2.29841059,3345.7,3344.5,1.04229001]
[1768405042645,2.29841059,3345.7,3344.7,2.98980476]
[1768405042819,2.29841059,3345.7,3344.7,5.97960952]
[1768405043019,2.29841059,3345.7,3344.7,2.98980476]
[1768405043355,1.91141059,3345.4,3344.0,2.99042412]
[1768405043512,0.21884772,3345.3,3344.2,2.99024106]
[1768405043704,0.21884772,3345.3,3344.1,0.32878919]
[1768405043705,2.13025831,3345.3,3344.1,0.32878919]
[1768405043932,2.13025831,3345.3,3344.2,2.99022079]
[1768405044242,0.21884772,3345.3,3344.1,0.32878919]
[1768405044449,4.90005374,3346.0,3344.7,0.001]
[1768405044672,3.65287653,3345.9,3344.7,0.001]
[1768405044942,3.37579967,3345.9,3344.7,0.001]
[1768405045149,8.27600993,3345.9,3344.7,0.001]
[1768405045308,3.01623568,3345.8,3344.7,0.001]
[1768405045509,2.73901158,3345.8,3344.7,0.001]
[1768405046250,2.18880291,3345.7,3344.7,0.001]
[1768405046413,1.91141059,3345.7,3344.7,0.001]
[1768405046921,5.97800094,3345.6,3344.7,0.001]
[1768405047113,2.78311184,3345.5,3344.1,2.99034119]
[1768405047317,2.29841059,3345.4,3344.1,2.99034119]
[1768405047547,2.29841059,3345.4,3343.6,1.89963802]
[1768405047730,2.29841059,3345.4,3343.3,0.377]
[1768405047731,1.91141059,3345.2,3343.3,0.377]
[1768405047926,1.91141059,3345.0,3343.4,0.2277638]
[1768405048136,2.57582943,3344.9,3343.7,2.99064969]
[1768405048329,2.16899353,3344.8,3343.6,2.99075898]
[1768405048558,2.16899353,3344.8,3343.4,0.2277638]
[1768405048764,2.98980476,3344.7,3343.4,0.2277638]
[1768405048964,2.98980476,3344.7,3343.3,0.377]
[1768405048965,7.89102011,3344.7,3343.3,2.99099894]
[1768405049170,7.89102011,3344.7,3343.2,0.001]
[1768405049171,2.18883206,3344.6,3343.2,0.001]
[1768405049366,1.91141059,3344.6,3343.4,2.99096079]
[1768405049595,0.61411831,3344.5,3343.4,2.99096079]
[1768405049796,0.61411831,3344.5,3343.4,5.98192806]
[1768405050006,2.29841059,3346.0,3344.5,0.02079582]
[1768405050292,0.27729001,3345.9,3344.5,0.02079582]
[1768405050476,0.85528083,3345.8,3344.5,0.02079582]
[1768405050859,5.97782226,3345.7,3344.5,0.02079582]
[1768405051460,2.18874916,3345.6,3344.5,0.02079582]
[1768405051668,0.387,3345.5,3344.3,2.99013233]
[1768405051851,0.6023259,3345.4,3344.0,1.89963802]
[1768405052053,0.6023259,3345.4,3344.3,2.99008653]
[1768405052054,0.387,3345.3,3344.3,2.99008653]
[1768405052756,0.387,3345.3,3343.6,2.27663802]
[1768405053085,0.387,3345.3,3343.8,4.89019577]
[1768405053260,3.3762777,3345.3,3343.9,3.02449738]
[1768405053463,3.3762777,3345.3,3344.0,1.89963802]
[1768405053770,0.387,3345.3,3344.0,1.89963802]
[1768405053972,3.37628025,3345.3,3344.0,1.89963802]
[1768405054494,3.37628025,3345.3,3343.9,1.12485936]
[1768405054495,6.3655605,3345.3,3343.9,1.12485936]
[1768405054697,6.3655605,3345.3,3343.7,2.99069892]
[1768405054698,2.82538964,3345.2,3343.7,2.99069892]
[1768405054879,5.97907324,3345.0,3343.7,2.99069892]
[1768405055183,5.97907324,3345.0,3343.5,1.89963802]
[1768405055373,7.89048383,3345.0,3343.6,2.99077055]
[1768405055572,0.82105068,3344.9,3343.6,5.98155892]
[1768405055779,0.387,3344.8,3343.6,5.98155892]
[1768405056085,0.387,3344.9,3343.7,1.89963802]
[1768405056271,5.97807486,3345.6,3343.9,1.89963802]
[1768405056582,0.66453274,3345.5,3343.9,1.89963802]
[1768405056785,0.43017929,3346.5,3344.0,1.92954232]
[1768405056786,1.91141059,3346.5,3344.0,1.92954232]
[1768405057083,0.66459388,3346.4,3344.6,1.89963802]
[1768405057383,1.13285102,3346.3,3344.8,1.89963802]
[1768405057582,2.1891288,3346.2,3344.7,1.46395887]
[1768405057749,0.002,3345.4,3344.7,1.46395887]
[1768405057955,0.002,3345.4,3344.8,0.7443926]
[1768405059094,0.002,3345.7,3344.9,2.98962599]
[1768405059264,0.002,3345.7,3344.9,5.97925198]
[1768405059468,0.387,3345.8,3344.9,5.97925198]
[1768405059764,2.98871534,3346.0,3344.9,2.98962599]
[1768405059965,0.27795096,3345.9,3345.0,0.82559696]
[1768405060162,2.9886601,3346.0,3345.0,0.82559696]
[1768405060389,3.37556179,3346.1,3345.0,0.82559696]
[1768405060390,0.387,3346.1,3345.0,0.82559696]
[1768405060688,0.27806198,3346.0,3345.1,0.68048489]
[1768405060892,0.387,3346.1,3345.1,0.68048489]
[1768405061196,0.387,3346.1,3345.2,2.98935788]
[1768405061394,0.66510532,3346.5,3345.2,5.97871576]
[1768405061599,0.387,3346.4,3345.3,0.74847976]
[1768405062269,2.29841059,3346.4,3345.1,0.378]
[1768405062466,2.29841059,3346.4,3344.6,1.89963802]
[1768405062669,2.29841059,3346.4,3345.0,0.378]
[1768405062856,2.29841059,3346.4,3344.7,2.98974803]
[1768405063053,1.91141059,3346.2,3344.6,0.378]
[1768405063276,1.91141059,3346.0,3344.6,0.378]
[1768405063525,1.91141059,3346.0,3344.6,3.36789189]
[1768405063689,2.34158988,3345.9,3344.6,0.378]
[1768405063893,0.66510532,3345.7,3344.6,6.35775806]
[1768405064098,0.66510532,3345.7,3344.6,2.98986391]
[1768405064399,0.66510532,3345.7,3344.6,5.97975806]
[1768405064761,0.66510532,3345.7,3344.6,2.98986391]
[1768405065096,0.99198691,3345.7,3344.6,3.62565736]
[1768405065262,2.98900047,3345.6,3344.6,3.62565736]
[1768405065461,0.99198691,3345.7,3344.6,3.62565736]
[1768405065462,3.98091064,3345.7,3344.6,3.62565736]
[1768405065685,6.96983437,3345.7,3344.6,3.62565736]
[1768405065897,0.99198691,3345.7,3344.6,3.62565736]
[1768405066110,0.66510532,3345.7,3344.7,0.40036574]
[1768405066463,3.65401785,3345.7,3344.7,0.40036574]
[1768405066663,0.66510532,3345.7,3344.7,0.40036574]
[1768405067388,0.66510532,3345.7,3344.7,3.39008342]
[1768405067605,0.66510532,3345.7,3344.7,6.37988818]